bitfinex/quotes_SOLUSD_20240814
["timestamp","ask_amount","ask_price","bid_price","bid_amount"]
[1723675129751,0.610394,144.39,144.38,45.50196]
[1723675130249,0.110394,144.39,144.38,0.50196]
[1723675132552,0.110394,144.39,144.38,0.00196]
[1723675132747,0.110394,144.39,144.37,45.0]
[1723675133472,0.110394,144.39,144.37,35.0]
[1723675134679,0.110394,144.39,144.38,0.37647]
[1723675134842,0.110394,144.39,144.38,0.50196]
[1723675136657,0.110394,144.39,144.38,1.88457925]
[1723675136856,0.110394,144.39,144.38,8.81067925]
[1723675137059,0.110394,144.39,144.38,53.81067925]
[1723675137345,16.0926,144.49,144.44,6.9229]
[1723675137567,16.903994,144.53,144.45,45.50196]
[1723675138174,16.903994,144.53,144.45,45.37647]
[1723675138471,16.903994,144.53,144.45,0.37647]
[1723675138676,16.903994,144.53,144.46,0.12549]
[1723675139970,20.0,144.52,144.46,0.12549]
[1723675141379,20.0,144.52,144.46,7.04779]
[1723675141583,16.903994,144.53,144.47,45.37647]
[1723675141781,16.903994,144.53,144.48,0.12549]
[1723675142076,16.903994,144.53,144.48,0.25098]
[1723675142262,16.903994,144.53,144.49,0.37647]
[1723675143888,16.903994,144.53,144.43,6.4575]
[1723675144169,20.0,144.52,144.43,6.4575]
[1723675144879,20.0,144.52,144.39,6.6493]
[1723675145087,20.0,144.52,144.39,13.5745]
[1723675145586,20.0,144.52,144.4,6.9251]
[1723675145760,20.0,144.52,144.41,6.9246]
[1723675146174,20.0,144.52,144.42,45.50196]
[1723675146388,20.0,144.52,144.42,0.12549]
[1723675147799,20.0,144.52,144.43,0.12549]
[1723675147995,20.0,144.52,144.43,0.25098]
[1723675148179,20.0,144.52,144.44,0.12549]
[1723675148383,20.0,144.52,144.44,0.25098]
[1723675149265,20.0,144.52,144.44,0.12549]
[1723675150393,16.1529,144.5,144.44,0.12549]
[1723675150595,20.0,144.49,144.44,0.12549]
[1723675151694,20.0,144.49,144.37,24.2423]
[1723675151890,16.1972,144.46,144.32,6.1888]
[1723675152213,20.0,144.45,144.32,6.1888]
[1723675152413,36.1972,144.45,144.32,6.1888]
[1723675152905,0.25098,144.44,144.32,6.1888]
[1723675153814,0.25098,144.44,144.33,0.12549]
[1723675154115,0.25098,144.44,144.33,0.52587379]
[1723675154327,36.1972,144.45,144.34,0.52867705]
[1723675154696,36.1972,144.45,144.34,7.45657705]
[1723675154882,36.1972,144.45,144.32,6.1888]
[1723675155407,36.1972,144.45,144.34,0.12549]
[1723675155610,36.1972,144.45,144.36,0.12549]
[1723675155989,36.1972,144.45,144.36,0.65415807]
[1723675156198,36.1972,144.45,144.37,0.25098]
[1723675156898,16.1972,144.45,144.38,0.12549]
[1723675157424,16.1972,144.45,144.38,52.17708]
[1723675157593,16.1972,144.45,144.39,0.25098]
[1723675157794,16.1972,144.45,144.4,0.12549]
[1723675158021,16.1972,144.45,144.4,0.25098]
[1723675158225,16.1972,144.45,144.41,0.12549]
[1723675158395,16.1972,144.45,144.41,0.25098]
[1723675159616,16.1972,144.45,144.42,0.12549]
[1723675159821,16.1972,144.45,144.41,0.25098]
[1723675160497,16.1972,144.45,144.42,0.12549]
[1723675160811,16.1972,144.45,144.41,0.25098]
[1723675161017,16.1972,144.45,144.4,45.25098]
[1723675161529,16.1972,144.45,144.4,52.17608]
[1723675162228,16.1972,144.45,144.41,0.25098]
[1723675162520,16.1972,144.45,144.43,0.12549]
[1723675164630,16.1972,144.45,144.42,0.25098]
[1723675164851,16.1972,144.45,144.39,24.2392]
[1723675165025,16.1972,144.45,144.4,0.12549]
[1723675166042,16.1972,144.45,144.4,0.25098]
[1723675166337,16.1972,144.45,144.41,0.25098]
[1723675167438,16.1972,144.45,144.41,45.25098]
[1723675167644,16.1972,144.45,144.35,6.0622]
[1723675167823,16.1972,144.45,144.36,6.9268]
[1723675168144,16.1972,144.45,144.37,6.9266]
[1723675169013,16.1972,144.45,144.38,45.50196]
[1723675169729,16.1972,144.45,144.36,6.9269]
[1723675170560,16.1972,144.45,144.37,17.3159]
[1723675171251,16.1972,144.45,144.38,45.50196]
[1723675171561,16.1972,144.45,144.4,0.12549]
[1723675171729,16.1972,144.45,144.4,45.50196]
[1723675172834,16.1972,144.45,144.4,52.42706]
[1723675173855,16.1972,144.45,144.42,0.12549]
[1723675174177,16.1972,144.45,144.42,45.50196]
[1723675176646,16.1972,144.45,144.42,45.37647]
[1723675176965,16.1972,144.45,144.39,6.9255]
[1723675177664,16.1972,144.45,144.38,24.2404]
[1723675178082,16.1972,144.45,144.39,0.12549]
[1723675178379,16.1972,144.45,144.39,0.25098]
[1723675178749,16.1972,144.45,144.39,0.12549]
[1723675179073,16.1972,144.45,144.36,7.24148554]
[1723675179577,16.1972,144.45,144.37,18.57134023]
[1723675179779,16.1972,144.45,144.37,17.3163]
[1723675180276,16.1972,144.45,144.38,45.50196]
[1723675183078,16.1972,144.45,144.38,52.42776]
[1723675183289,16.1972,144.45,144.38,52.42796]
[1723675183453,16.1972,144.45,144.39,8.31009243]
[1723675183652,16.1972,144.45,144.4,45.50196]
[1723675184464,16.1972,144.45,144.43,0.12549]
[1723675184671,16.1972,144.45,144.43,45.50196]
[1723675185075,16.1972,144.45,144.43,0.50196]
[1723675186886,16.1972,144.45,144.43,0.37647]
[1723675187689,16.1972,144.45,144.39,6.9253]
[1723675187982,16.1972,144.45,144.38,6.926]
[1723675188183,16.1972,144.45,144.37,24.55869645]
[1723675188692,6.6499,144.44,144.37,7.24269645]
[1723675188897,6.6499,144.44,144.34,51.9597]
[1723675189066,6.6499,144.44,144.35,7.24440644]
[1723675190695,6.6499,144.44,144.36,45.50196]
[1723675190891,6.6499,144.44,144.36,52.42896]
[1723675197201,15.1418,144.43,144.38,7.05159]
[1723675197401,15.1418,144.43,144.39,1.63167157]
[1723675197606,15.1418,144.43,144.4,1.38059595]
[1723675200602,15.1418,144.43,144.41,0.12549]
[1723675201185,15.1418,144.43,144.4,0.25098]
[1723675202097,15.1418,144.43,144.4,8.55614133]
[1723675202301,15.1418,144.43,144.42,0.12549]
[1723675202608,15.1418,144.43,144.42,0.25098]
[1723675202796,15.1418,144.43,144.42,0.12549]
[1723675202993,15.1418,144.43,144.41,45.0]
[1723675203194,15.1418,144.43,144.42,0.12549]
[1723675203394,15.1418,144.43,144.42,0.37647]
[1723675203592,15.1418,144.43,144.41,45.0]
[1723675204003,15.1418,144.43,144.42,0.37647]
[1723675204998,15.1418,144.43,144.42,0.50196]
[1723675206391,15.1418,144.43,144.42,0.37647]
[1723675206721,15.1418,144.43,144.37,31.10211081]
[1723675206904,15.1418,144.43,144.37,24.55531081]
[1723675207110,15.1418,144.43,144.38,6.9261]
[1723675207507,15.1418,144.43,144.37,31.48171081]
[1723675207701,15.1418,144.43,144.37,24.55531081]
[1723675207893,15.1418,144.43,144.37,17.3158]
[1723675208631,15.1418,144.43,144.37,24.2424]
[1723675208827,15.1418,144.43,144.38,6.9261]
[1723675209025,15.1418,144.43,144.39,6.9253]
[1723675209224,15.1418,144.43,144.4,0.12549]
[1723675209435,15.1418,144.43,144.39,0.25098]
[1723675209636,15.1418,144.43,144.39,7.05109]
[1723675209845,15.1418,144.43,144.4,0.12549]
[1723675210004,15.1418,144.43,144.4,45.25098]
[1723675211217,15.1418,144.43,144.41,0.12549]
[1723675211428,15.1418,144.43,144.41,0.25098]
[1723675213336,15.1418,144.43,144.42,0.12549]
[1723675213516,15.1418,144.43,144.41,0.25098]
[1723675216738,21.6981,144.51,144.42,0.25098]
[1723675216932,20.0,144.5,144.43,0.25098]
[1723675217142,20.0,144.5,144.44,0.12549]
[1723675217438,15.5676,144.49,144.43,0.25098]
[1723675217730,20.0,144.48,144.43,0.12549]
[1723675218321,20.0,144.48,144.39,6.9256]
[1723675218528,20.0,144.48,144.4,0.12549]
[1723675218951,15.5558,144.48,144.4,0.12549]
[1723675219749,15.5558,144.48,144.4,0.25098]
[1723675220354,20.0,144.47,144.4,45.25098]
[1723675220648,16.5174,144.44,144.35,7.24185637]
[1723675221146,16.5174,144.42,144.35,7.24185637]
[1723675221541,29.00568519,144.42,144.35,7.24185637]
[1723675222626,16.5174,144.42,144.35,7.24185637]
[1723675222860,16.5174,144.42,144.36,0.12549]
[1723675223073,16.5174,144.42,144.37,6.9264]
[1723675223274,16.5174,144.42,144.38,0.25098]
[1723675223565,16.5174,144.42,144.39,0.12549]
[1723675226171,16.5174,144.42,144.36,17.3171]
[1723675226476,16.5174,144.42,144.37,45.12549]
[1723675226855,16.5174,144.42,144.37,0.12549]
[1723675228672,16.5174,144.42,144.37,0.25098]
[1723675229266,16.5174,144.42,144.38,0.12549]
[1723675229446,16.5174,144.42,144.39,0.12549]
[1723675229945,16.5174,144.42,144.39,0.25098]
[1723675231153,16.5174,144.42,144.39,45.25098]
[1723675231566,16.5174,144.42,144.39,0.25098]
[1723675232165,16.5174,144.42,144.35,24.56086734]
[1723675232478,16.5174,144.42,144.28,20.0]
[1723675232479,16.5174,144.42,144.34,6.9279]
[1723675232664,16.5174,144.42,144.36,6.9271]
[1723675232856,16.5174,144.42,144.34,17.3194]
[1723675233054,16.5174,144.42,144.34,24.2474]
[1723675233867,16.5174,144.42,144.35,6.9275]
[1723675234073,16.5174,144.42,144.34,17.3194]
[1723675234074,16.5174,144.42,144.36,6.9267]
[1723675234482,16.5174,144.42,144.37,0.12549]
[1723675234680,16.5174,144.42,144.37,45.50196]
[1723675236593,16.5174,144.42,144.39,0.12549]
[1723675236772,16.5174,144.42,144.35,7.24299703]
[1723675237088,16.5174,144.42,144.33,17.321]
[1723675237383,16.5174,144.42,144.33,24.56556588]
[1723675237567,16.5174,144.42,144.33,17.321]
[1723675238514,15.9183,144.4,144.3,24.5695853]
[1723675238809,15.9183,144.4,144.3,17.3245]
[1723675239573,15.9183,144.4,144.32,17.3216]
[1723675239792,15.9183,144.4,144.3,62.9812994]
[1723675239998,15.9183,144.4,144.35,6.9272]
[1723675240183,15.9183,144.4,144.36,0.37647]
[1723675240380,15.9183,144.4,144.36,45.37647]
[1723675241573,15.9183,144.4,144.36,45.25098]
[1723675241829,15.9183,144.4,144.35,45.0]
[1723675243412,15.9183,144.4,144.34,17.69567]
[1723675243583,15.9183,144.4,144.35,0.12549]
[1723675243975,15.9183,144.4,144.33,0.12549]
[1723675244315,15.9183,144.4,144.33,45.37647]
[1723675244690,15.455,144.38,144.31,17.3233]
[1723675245093,15.455,144.38,144.29,14.17720675]
[1723675245282,20.0,144.37,144.28,24.2577]
[1723675245612,20.0,144.37,144.28,24.57427876]
[1723675246522,15.455,144.38,144.34,6.9279]
[1723675246816,15.455,144.38,144.35,0.12549]
[1723675247318,15.455,144.38,144.34,0.12549]
[1723675247503,15.455,144.38,144.34,0.25098]
[1723675247901,15.455,144.38,144.34,0.12549]
[1723675249293,15.455,144.38,144.34,0.25098]
[1723675249521,15.455,144.38,144.35,0.25098]
[1723675249722,15.455,144.38,144.35,0.12549]
[1723675250821,15.455,144.38,144.34,0.12549]
[1723675251720,15.455,144.38,144.29,24.2565]
[1723675253116,15.455,144.38,144.3,6.9299]
[1723675253822,15.455,144.38,144.31,0.12549]
[1723675254320,15.455,144.38,144.31,45.25098]
[1723675254625,20.0,144.37,144.31,45.25098]
[1723675258313,20.0,144.37,144.31,0.25098]
[1723675261448,15.5924,144.36,144.31,0.25098]
[1723675261611,15.5924,144.36,144.26,17.3293]
[1723675261821,15.5924,144.33,144.26,17.3293]
[1723675262335,20.0,144.32,144.26,17.3293]
[1723675262947,15.5924,144.33,144.28,17.3266]
[1723675263108,15.5924,144.33,144.29,6.9301]
[1723675263312,15.5924,144.33,144.28,17.3266]
[1723675263313,15.5924,144.33,144.28,24.2574]
[1723675263810,15.5924,144.33,144.29,0.12549]
[1723675264036,15.5924,144.33,144.26,0.12549]
[1723675264238,15.5924,144.33,144.26,0.25098]
[1723675264941,15.5924,144.33,144.25,17.3305]
[1723675265239,15.5924,144.31,144.22,6.9333]
[1723675265553,20.0,144.3,144.22,6.9333]
[1723675266615,20.0,144.3,144.23,52.18428]
[1723675267627,15.5924,144.31,144.23,45.25098]
[1723675267822,15.5924,144.31,144.27,6.931]
[1723675268030,15.5924,144.31,144.28,0.37647]
[1723675269351,15.5924,144.31,144.28,7.30737]
[1723675269523,15.5924,144.31,144.29,45.0]
[1723675269723,15.5924,144.31,144.3,0.12549]
[1723675271259,15.5924,144.31,144.29,45.0]
[1723675271430,15.5924,144.31,144.28,45.37647]
[1723675271742,15.5924,144.31,144.29,0.12549]
[1723675272249,15.5924,144.31,144.3,0.12549]
[1723675272441,15.5924,144.31,144.3,45.25098]
[1723675272615,15.5924,144.31,144.3,45.37647]
[1723675272820,35.5924,144.31,144.22,6.9335]
[1723675273142,20.0,144.3,144.23,6.9333]
[1723675274221,20.0,144.3,144.24,45.12549]
[1723675275022,20.0,144.3,144.24,52.05819]
[1723675275466,15.5924,144.31,144.26,0.12549]
[1723675275649,15.5924,144.31,144.26,52.43346]
[1723675276172,15.5924,144.31,144.28,0.12549]
[1723675276341,15.5924,144.31,144.28,45.37647]
[1723675276959,15.5924,144.31,144.28,0.37647]
[1723675277753,15.5924,144.31,144.28,0.12549]
[1723675277944,15.5924,144.31,144.23,6.9332]
[1723675278151,20.0,144.3,144.23,6.9332]
[1723675279382,20.0,144.3,144.22,24.2679]
[1723675279939,20.0,144.3,144.22,17.3342]
[1723675280248,15.0281,144.29,144.22,17.3342]
[1723675280447,15.0281,144.29,144.22,24.2678]
[1723675280448,20.0,144.28,144.22,24.2678]
[1723675280644,20.0,144.28,144.23,6.9333]
[1723675281170,20.0,144.28,144.24,0.37647]
[1723675281331,20.0,144.28,144.25,0.25098]
[1723675281536,20.0,144.28,144.26,0.12549]
[1723675281736,14.5281,144.29,144.26,7.05729]
[1723675282041,14.5281,144.29,144.27,45.0]
[1723675282250,14.5281,144.29,144.26,0.12549]
[1723675282549,14.5281,144.29,144.27,0.12549]
[1723675282745,14.5281,144.29,144.27,0.25098]
[1723675283166,14.5281,144.29,144.28,0.12549]
[1723675286276,14.5281,144.29,144.28,0.37647]
[1723675288377,6.1092,144.34,144.28,0.37647]
[1723675288556,35.3279,144.33,144.29,0.12549]
[1723675288753,35.3279,144.33,144.29,0.25098]
[1723675290380,35.3279,144.33,144.29,0.12549]
[1723675290897,35.3279,144.33,144.28,45.12549]
[1723675291090,35.3279,144.33,144.28,0.12549]
[1723675291982,35.3279,144.33,144.25,0.12549]
[1723675292372,35.3279,144.33,144.23,24.266]
[1723675292987,35.3279,144.33,144.23,17.3328]
[1723675293291,35.3279,144.33,144.23,24.2661]
[1723675294294,35.3279,144.33,144.24,45.37647]
[1723675297995,15.3279,144.33,144.26,0.12549]
[1723675298214,15.3279,144.33,144.3,0.12549]
[1723675298369,15.3279,144.33,144.31,0.12549]
[1723675298566,15.3279,144.33,144.31,0.25098]
[1723675299678,15.3279,144.33,144.32,0.12549]
[1723675299874,15.3279,144.33,144.32,0.25098]
[1723675300293,15.3279,144.33,144.32,0.37647]
[1723675300496,15.3279,144.33,144.32,0.12549]
[1723675309395,15.3279,144.33,144.3,45.0]
[1723675309621,15.3279,144.33,144.27,6.9311]
[1723675309908,15.3279,144.33,144.28,0.12549]
[1723675310692,15.3279,144.33,144.26,24.261]
[1723675311306,15.3279,144.33,144.24,8.51736048]
[1723675311613,20.0,144.32,144.24,6.9327]
[1723675312612,20.0,144.32,144.25,0.12549]
[1723675312918,20.0,144.32,144.25,0.25098]
[1723675314315,20.0,144.32,144.26,0.12549]
[1723675314624,20.0,144.32,144.26,0.25098]
[1723675315553,15.7525,144.31,144.22,7.23487781]
[1723675315739,15.7525,144.29,144.17,6.9361]
[1723675316031,15.7525,144.29,144.16,7.23670655]
[1723675316032,15.7525,144.26,144.16,7.23670655]
[1723675316207,35.7525,144.25,144.15,6.9371]
[1723675317015,35.7525,144.25,144.16,6.9366]
[1723675317536,35.7525,144.25,144.15,6.9371]
[1723675318131,35.7525,144.25,144.16,45.50196]
[1723675318499,35.7525,144.25,144.15,6.9371]
[1723675318737,15.7525,144.24,144.14,17.3435]
[1723675319044,20.0,144.23,144.14,17.3435]
[1723675319331,15.7525,144.22,144.14,17.3435]
[1723675319502,6.3573,144.2,144.13,6.9378]
[1723675319711,20.0,144.19,144.13,6.9378]
[1723675320034,20.0,144.19,144.11,24.58596305]
[1723675320235,15.2895,144.18,144.11,17.3472]
[1723675320411,20.0,144.17,144.11,24.2859]
[1723675320610,20.0,144.17,144.1,7.23972775]
[1723675320928,20.0,144.17,144.08,24.2914]
[1723675321250,20.0,144.17,144.08,17.3509]
[1723675321421,15.7541,144.16,144.08,17.3509]
[1723675321729,20.0,144.15,144.08,17.3509]
[1723675321935,20.0,144.15,144.08,24.2914]
[1723675322299,20.0,144.15,144.08,17.3509]
[1723675322808,20.0,144.15,144.09,52.44166]
[1723675323038,15.7541,144.16,144.11,0.12549]
[1723675323202,15.7541,144.16,144.13,6.9378]
[1723675323401,15.7541,144.16,144.14,0.12549]
[1723675323616,15.7541,144.16,144.13,45.0]
[1723675323824,15.7541,144.16,144.14,0.12549]
[1723675324016,15.7541,144.16,144.14,0.25098]
[1723675324332,15.7541,144.16,144.15,0.12549]
[1723675326827,16.1995,144.19,144.16,0.12549]
[1723675327132,16.1995,144.19,144.15,45.25098]
[1723675327337,16.1995,144.19,144.16,0.12549]
[1723675328244,16.1995,144.19,144.16,0.25098]
[1723675328444,16.1995,144.19,144.15,45.25098]
[1723675328649,16.1995,144.19,144.15,45.12549]
[1723675329727,16.1995,144.19,144.16,0.12549]
[1723675329934,16.1995,144.19,144.16,0.25098]
[1723675330837,16.1995,144.19,144.16,0.12549]
[1723675331022,16.1995,144.19,144.12,6.9386]
[1723675331217,20.0,144.18,144.11,17.3471]
[1723675331420,20.0,144.18,144.11,24.2861]
[1723675331653,20.0,144.18,144.09,6.9397]
[1723675331972,26.547,144.18,144.09,6.9397]
[1723675332118,26.547,144.18,144.1,6.9395]
[1723675332318,26.547,144.18,144.08,23.6959]
[1723675332954,26.547,144.18,144.11,6.9391]
[1723675333248,26.547,144.18,144.12,45.37647]
[1723675333450,26.547,144.18,144.12,45.12549]
[1723675333653,26.547,144.18,144.12,0.12549]
[1723675335530,26.547,144.18,144.12,0.25098]
[1723675337756,16.1995,144.19,144.13,0.12549]
[1723675337937,16.1995,144.19,144.15,6.9371]
[1723675338144,16.1995,144.19,144.16,0.37647]
[1723675338343,16.1995,144.19,144.16,45.37647]
[1723675339243,16.1995,144.19,144.16,52.31317]
[1723675345644,16.1995,144.19,144.14,17.3438]
[1723675346271,16.1995,144.19,144.11,17.3472]
[1723675346574,16.1995,144.19,144.12,6.9386]
[1723675346773,20.0,144.18,144.12,6.9386]
[1723675347970,20.0,144.18,144.13,0.12549]
[1723675348163,20.0,144.18,144.13,45.25098]
[1723675348567,20.0,144.18,144.1,6.9394]
[1723675348746,16.2155,144.17,144.08,17.3506]
[1723675349071,16.2155,144.17,144.09,6.9399]
[1723675349072,20.0,144.16,144.09,6.9399]
[1723675350163,20.0,144.16,144.1,0.25098]
[1723675350367,20.0,144.16,144.1,45.25098]
[1723675353867,26.6228,144.16,144.1,45.12549]
[1723675354100,26.6228,144.16,144.1,0.12549]
[1723675354270,15.5643,144.15,144.1,0.12549]
[1723675354593,15.5643,144.15,144.07,6.9409]
[1723675354594,20.0,144.14,144.07,6.9409]
[1723675354898,20.0,144.14,144.05,17.3543]
[1723675354899,20.0,144.14,144.06,6.9413]
[1723675355104,15.5643,144.13,144.05,24.2961]
[1723675355285,15.5643,144.13,144.06,6.9414]
[1723675355286,20.0,144.12,144.06,6.9414]
[1723675356695,20.0,144.12,144.05,24.2962]
[1723675357000,20.0,144.12,144.05,17.3543]
[1723675357573,15.5643,144.11,144.03,7.754194]
[1723675357770,20.0,144.1,144.03,7.754194]
[1723675357977,20.0,144.1,144.04,6.9424]
[1723675358784,20.0,144.1,144.05,0.12549]
[1723675359504,20.0,144.1,144.06,0.12549]
[1723675359708,15.5643,144.11,144.06,0.25098]
[1723675359891,20.0,144.1,144.06,0.25098]
[1723675360097,20.0,144.1,144.07,0.12549]
[1723675360681,20.0,144.1,144.05,52.06719]
[1723675360922,20.0,144.1,144.06,0.12549]
[1723675363893,20.0,144.1,144.06,7.19238]
[1723675364094,20.0,144.1,144.07,45.0]
[1723675364995,20.0,144.1,144.06,45.25098]
[1723675366019,20.0,144.1,144.06,52.19248]
[1723675366225,15.5643,144.11,144.07,6.941]
[1723675366532,15.5643,144.11,144.08,45.12549]
[1723675367710,15.5643,144.11,144.08,0.12549]
[1723675367911,15.5643,144.11,144.07,45.12549]
[1723675368107,15.5643,144.11,144.08,0.12549]
[1723675370736,15.5643,144.11,144.07,45.12549]
[1723675371022,15.5643,144.11,144.06,17.3535]
[1723675371396,15.5643,144.11,144.03,0.811394]
[1723675371597,6.1121,144.09,144.03,0.811394]
[1723675372025,20.0,144.08,144.03,0.811394]
[1723675372428,15.9903,144.08,144.03,0.811394]
[1723675372929,20.0,144.07,144.03,0.811394]
[1723675376641,15.9903,144.08,144.04,0.25098]
[1723675376819,15.9903,144.08,144.04,45.25098]
[1723675377717,15.9903,144.08,144.05,0.12549]
[1723675378128,15.9903,144.08,144.05,7.06709]
[1723675378342,15.9903,144.08,144.06,45.25098]
[1723675378649,15.9903,144.08,144.06,52.19248]
[1723675378941,16.3135,144.12,144.07,7.06649]
[1723675379443,20.0,144.11,144.08,45.25098]
[1723675380152,16.3135,144.12,144.09,0.12549]
[1723675384249,16.3135,144.12,144.09,7.06549]
[1723675384452,16.3135,144.12,144.1,45.25098]
[1723675389162,16.3135,144.12,144.1,0.12549]
[1723675389670,16.3135,144.12,144.06,6.9413]
[1723675390778,16.3135,144.12,144.05,24.296]
[1723675391065,20.0,144.11,144.05,24.296]
[1723675391873,20.0,144.11,144.06,6.9415]
[1723675392243,20.0,144.11,144.07,0.12549]
[1723675392942,20.0,144.11,144.06,45.25098]
[1723675394632,16.3135,144.12,144.06,45.25098]
[1723675394633,16.3135,144.12,144.08,0.12549]
[1723675394841,16.3135,144.12,144.08,45.25098]
[1723675399085,16.3135,144.12,144.07,0.12549]
[1723675399285,20.0,144.11,144.05,17.3542]
[1723675399783,20.0,144.11,144.03,0.811394]
[1723675399986,26.6106,144.11,144.03,0.811394]
[1723675400484,26.6106,144.11,144.03,7.754294]
[1723675402192,26.6106,144.11,144.04,45.25098]
[1723675402888,26.6106,144.11,144.04,0.12549]
[1723675403066,15.2376,144.1,144.03,0.811394]
[1723675403267,20.0,144.09,144.03,0.811394]
[1723675404579,16.0459,144.08,144.03,0.811394]
[1723675404785,20.0,144.07,144.03,0.811394]
[1723675405169,16.0459,144.06,144.03,0.811394]
[1723675405369,26.2924,144.05,143.96,6.946]
[1723675406189,16.0459,144.04,143.94,6.5903]
[1723675406499,20.0,144.03,143.95,6.9468]
[1723675406703,20.0,144.03,143.94,6.9472]
[1723675409285,20.0,144.03,143.95,45.12549]
[1723675410282,15.0163,144.02,143.94,45.0]
[1723675410507,20.0,144.01,143.94,45.0]
[1723675410807,20.0,144.01,143.95,0.25098]
[1723675411006,15.0163,144.02,143.97,0.12549]
[1723675411297,15.0163,144.02,143.98,6.9454]
[1723675411501,15.0163,144.02,143.97,7.19668]
[1723675411812,15.0163,144.02,143.98,52.07079]
[1723675411986,15.0163,144.02,143.99,0.12549]
[1723675412400,15.0163,144.02,143.99,7.19578]
[1723675412607,15.0163,144.02,144.0,45.12549]
[1723675412893,15.0163,144.02,143.99,0.12549]
[1723675413095,15.0163,144.02,143.98,69.308]
[1723675413475,15.0163,144.02,143.99,0.25098]
[1723675413676,15.0163,144.02,143.97,7.32227]
[1723675415690,15.0163,144.02,143.97,0.37647]
[1723675415900,15.0163,144.02,143.97,0.12549]
[1723675416208,20.0,144.01,143.96,45.0]
[1723675416378,20.0,144.01,143.95,24.3128]
[1723675416779,20.0,144.01,143.97,6.9454]
[1723675417484,20.0,144.01,143.96,7.07169]
[1723675417683,20.0,144.01,143.97,0.25098]
[1723675417901,20.0,144.01,143.97,45.25098]
[1723675426112,15.0163,144.02,143.97,62.61538]
[1723675426315,15.0163,144.02,143.99,0.12549]
[1723675426926,16.3484,144.08,144.04,6.9421]
[1723675427112,16.3484,144.08,144.05,45.12549]
[1723675427311,16.3484,144.08,144.05,0.12549]
[1723675428204,16.3484,144.08,144.05,1.30174932]
[1723675428401,16.3484,144.08,144.05,0.12549]
[1723675429429,16.3484,144.08,144.05,1.30323363]
[1723675429724,16.3484,144.08,144.05,0.12549]
[1723675429894,16.3484,144.08,144.05,0.25098]
[1723675430102,16.3484,144.08,144.05,7.19288]
[1723675430322,16.3484,144.08,144.06,45.0]
[1723675430521,16.3484,144.08,144.06,51.9415]
[1723675430725,16.3484,144.08,144.07,0.12549]
[1723675438631,16.3484,144.08,144.02,17.3578]
[1723675439715,16.3484,144.08,144.02,24.3011]
[1723675440231,16.3484,144.08,144.03,0.12549]
[1723675440433,16.3484,144.08,144.03,45.12549]
[1723675441940,16.3484,144.08,144.03,52.06839]
[1723675442161,16.3484,144.08,144.04,0.25098]
[1723675442436,16.3484,144.08,144.05,0.12549]
[1723675442937,16.3484,144.08,144.05,45.12549]
[1723675443306,16.3484,144.08,144.05,0.12549]
[1723675443815,16.3484,144.08,144.06,0.12549]
[1723675444019,16.3484,144.08,144.06,45.12549]
[1723675444220,16.3484,144.08,144.07,0.12549]
[1723675444743,16.3484,144.08,144.06,45.12549]
[1723675444938,16.3484,144.08,144.04,24.2982]
[1723675445136,16.3484,144.08,144.05,45.12549]
[1723675446530,16.3484,144.08,144.05,0.12549]